bitfinex/quotes_SOLUSD_20240906
["timestamp","ask_amount","ask_price","bid_price","bid_amount"]
[1725660987999,55.00665317,124.93,124.84,15.2337]
[1725660989482,47.00215317,124.93,124.84,15.2337]
[1725660989684,387.9039,124.94,124.84,15.6835055]
[1725660989979,2.0019347,124.93,124.84,15.2337]
[1725660990178,26.1319347,124.93,124.84,15.2337]
[1725660990490,45.0,124.92,124.84,15.2337]
[1725660990693,412.0343,124.94,124.84,15.68335945]
[1725660990995,45.0,124.93,124.84,15.2337]
[1725660991202,387.9043,124.94,124.84,15.2337]
[1725660991499,8.0043,124.94,124.84,15.2337]
[1725660991707,10.0062975,124.94,124.84,15.2337]
[1725660994287,8.0043,124.94,124.84,15.2337]
[1725660994606,2.00189749,124.93,124.84,15.2337]
[1725660996883,8.0033,124.95,124.85,45.44976749]
[1725660997195,10.00513011,124.95,124.85,45.0]
[1725660997802,8.0039,124.94,124.84,15.2337]
[1725660998004,10.00668442,124.93,124.84,15.2337]
[1725660998210,34.13668442,124.93,124.84,15.2337]
[1725660998411,45.0,124.92,124.84,15.2337]
[1725660998808,26.13221614,124.91,124.84,15.2337]
[1725660999010,45.0,124.9,124.84,15.2337]
[1725660999207,100.55824278,124.92,124.84,15.2337]
[1725660999889,53.0053,124.92,124.84,15.2337]
[1725661001586,16.31724336,124.93,124.84,15.2337]
[1725661002208,417.69684278,124.96,124.84,15.2337]
[1725661002422,8.0036,124.95,124.85,76.87748707]
[1725661002590,10.00534402,124.95,124.85,76.42824278]
[1725661003087,8.004,124.94,124.85,45.0]
[1725661003307,2.00201368,124.93,124.84,15.2337]
[1725661003498,2.00180606,124.93,124.84,15.2337]
[1725661007191,79.13620606,124.93,124.84,15.2337]
[1725661007895,55.00620606,124.93,124.84,15.2337]
[1725661008793,53.0044,124.93,124.84,15.2337]
[1725661008987,53.0044,124.93,124.85,0.44976749]
[1725661009311,53.0044,124.93,124.84,15.68347322]
[1725661010402,45.0,124.93,124.84,15.68347322]
[1725661010605,8.004,124.94,124.84,15.68347322]
[1725661010803,379.9,124.95,124.84,15.2337]
[1725661010804,387.9033,124.95,124.84,15.2337]
[1725661011013,387.9033,124.95,124.85,76.87783587]
[1725661012513,387.9033,124.95,124.85,76.42824278]
[1725661012702,2.00176511,124.94,124.85,76.42824278]
[1725661014890,387.9033,124.95,124.85,76.42824278]
[1725661015526,8.0048,124.93,124.84,15.2337]
[1725661015808,2.00215332,124.92,124.84,15.2337]
[1725661016002,47.00215332,124.92,124.84,15.2337]
[1725661016197,45.0,124.92,124.84,15.2337]
[1725661016390,10.00704051,124.93,124.84,15.2337]
[1725661017810,8.004,124.94,124.84,15.2337]
[1725661018008,10.00534478,124.95,124.85,45.0]
[1725661018597,8.0038,124.94,124.85,45.0]
[1725661018798,8.0038,124.94,124.84,15.2337]
[1725661019423,2.00188555,124.93,124.84,15.2337]
[1725661021292,2.00188746,124.95,124.84,15.2337]
[1725661021497,14.3715,124.96,124.85,76.87792203]
[1725661021706,10.00470565,124.95,124.85,76.42824278]
[1725661021905,10.00470565,124.95,124.85,31.42824278]
[1725661022932,45.0,124.94,124.85,31.42824278]
[1725661023099,2.00188506,124.93,124.85,31.42824278]
[1725661023772,2.00188456,124.92,124.84,15.2337]
[1725661023897,10.00698456,124.92,124.84,15.2337]
[1725661024393,2.00188456,124.92,124.84,15.2337]
[1725661024593,47.00188456,124.92,124.84,15.2337]
[1725661027124,8.004,124.94,124.84,46.66194278]
[1725661027418,26.13221854,124.95,124.84,46.66194278]
[1725661027419,10.00551854,124.95,124.84,46.66194278]
[1725661028529,45.0,124.94,124.84,46.66194278]
[1725661030744,10.00551854,124.95,124.85,45.0]
[1725661031125,47.80127696,124.96,124.85,45.44924429]
[1725661031327,45.0,124.95,124.85,45.44924429]
[1725661031933,45.0,124.95,124.86,12.56728565]
[1725661032547,47.0016238,124.95,124.86,12.56728565]
[1725661033123,45.0,124.95,124.86,12.56728565]
[1725661034224,6.3686,124.96,124.88,12.56728565]
[1725661034419,6.3686,124.96,124.88,13.01572458]
[1725661034622,6.3686,124.96,124.88,12.56728565]
[1725661035128,15.1534,124.97,124.9,15.716]
[1725661035528,17.15463327,124.97,124.9,15.716]
[1725661035750,29.72191892,124.97,124.9,15.716]
[1725661035944,53.85191892,124.97,124.88,12.56728565]
[1725661036256,45.0,124.96,124.88,12.56728565]
[1725661036632,2.00161641,124.95,124.88,12.56728565]
[1725661036835,47.00162068,124.96,124.88,12.56728565]
[1725661037958,2.00159742,124.95,124.88,12.56728565]
[1725661038140,47.00160638,124.96,124.88,12.56728565]
[1725661038335,45.0,124.96,124.88,12.56728565]
[1725661038538,27.72068565,124.97,124.88,12.56728565]
[1725661038772,47.0013249,124.96,124.88,12.56728565]
[1725661039132,45.0,124.96,124.88,12.56728565]
[1725661039333,29.72223602,124.97,124.88,12.56728565]
[1725661042434,61.85413602,124.97,124.88,12.56728565]
[1725661042651,20.57188565,124.93,124.84,6.0629]
[1725661042834,2.00209468,124.92,124.84,21.3232]
[1725661043857,6.1228,124.94,124.85,12.56728565]
[1725661044061,2.00183958,124.93,124.84,21.3232]
[1725661044233,47.00183958,124.93,124.84,21.3232]
[1725661044842,78.42099111,124.93,124.84,15.2603]
[1725661045156,16.1993,124.92,124.84,15.2603]
[1725661045333,2.00230809,124.91,124.84,15.2603]
[1725661045529,2.00231711,124.9,124.84,15.2603]
[1725661045752,47.00231711,124.9,124.81,21.3232]
[1725661046337,2.00231711,124.9,124.81,21.3232]
[1725661046537,2.00243335,124.9,124.81,21.3232]
[1725661047660,47.00249108,124.91,124.81,21.3232]
[1725661047964,2.0024886,124.9,124.81,21.3232]
[1725661048254,404.1044,124.92,124.82,76.41915153]
[1725661048255,396.0993,124.92,124.82,76.41915153]
[1725661048460,47.00249097,124.91,124.82,31.41915153]
[1725661048637,2.00247868,124.9,124.82,31.41915153]
[1725661048838,47.00247868,124.91,124.82,31.41915153]
[1725661049450,379.9,124.92,124.84,31.41915153]
[1725661050556,379.9,124.92,124.85,0.44976631]
[1725661051251,379.9,124.92,124.85,45.0]
[1725661051557,379.9,124.93,124.85,45.0]
[1725661051738,379.9,124.93,124.84,31.41915153]
[1725661052531,379.9,124.93,124.82,31.41915153]
[1725661052532,2.00189428,124.92,124.82,31.41915153]
[1725661052736,379.9,124.93,124.83,45.0]
[1725661053556,2.00210593,124.92,124.83,45.0]
[1725661053748,47.00210593,124.92,124.83,45.0]
[1725661054042,47.00210593,124.92,124.82,31.41915153]
[1725661054241,55.00740593,124.92,124.82,31.41915153]
[1725661054763,24.2052,124.91,124.81,21.3232]
[1725661054967,47.00258553,124.9,124.81,21.3232]
[1725661055657,6.1228,124.89,124.81,15.2603]
[1725661055870,45.0,124.88,124.81,15.2603]
[1725661056443,47.00283327,124.88,124.81,15.2603]
[1725661056748,2.00283194,124.87,124.78,46.67945153]
[1725661057059,2.00283194,124.87,124.78,15.2603]
[1725661059568,2.00283194,124.87,124.78,46.67945153]
[1725661059745,6.1228,124.89,124.78,47.13156531]
[1725661060251,6.1228,124.89,124.74,31.41915153]
[1725661060252,8.0096,124.85,124.75,31.41915153]
[1725661060449,2.00349432,124.84,124.75,31.41915153]
[1725661061839,45.0,124.85,124.77,31.41915153]
[1725661062059,6.1228,124.86,124.77,33.16654477]
[1725661062262,6.1228,124.86,124.77,31.41915153]
[1725661064460,6.1228,124.86,124.79,31.41915153]
[1725661064659,6.1228,124.86,124.79,33.16654477]
[1725661065063,16.1993,124.88,124.8,15.3602]
[1725661065564,18.20196588,124.88,124.8,15.3602]
[1725661065775,2.00266588,124.87,124.8,15.3602]
[1725661066068,16.1993,124.88,124.8,15.3602]
[1725661071864,6.64,124.9,124.8,15.81189887]
[1725661072067,6.64,124.9,124.83,31.41915153]
[1725661072982,8.64223594,124.9,124.81,31.41915153]
[1725661073279,6.64,124.9,124.81,31.41915153]
[1725661074167,6.64,124.9,124.82,13.02655541]
[1725661074976,6.64,124.9,124.82,12.57611216]
[1725661077563,8.64228875,124.9,124.82,12.57611216]
[1725661078085,30.77,124.9,124.82,12.57611216]
[1725661078383,6.64,124.9,124.82,12.57611216]
[1725661078761,8.64236864,124.9,124.82,12.57611216]
[1725661079184,6.64,124.9,124.82,12.57611216]
[1725661080478,6.64,124.9,124.84,12.57611216]
[1725661081370,15.3145,124.91,124.86,12.57611216]
[1725661083274,379.9,124.92,124.86,12.57611216]
[1725661084172,6.0137,124.93,124.88,12.57611216]
[1725661085883,15.8634,124.94,124.88,12.57611216]
[1725661086081,15.8634,124.94,124.89,0.44855482]
[1725661086272,6.0137,124.96,124.9,12.57611216]
[1725661086470,6.0137,124.96,124.85,16.4432]
[1725661086676,2.00107726,124.95,124.87,12.57611216]
[1725661086970,20.59155461,124.96,124.87,12.57611216]
[1725661087171,21.8771,125.0,124.93,12.57611216]
[1725661087371,21.8771,125.0,124.94,0.44658476]
[1725661087585,21.8771,125.0,124.95,12.57611216]
[1725661088291,14.57661232,124.99,124.89,6.4538]
[1725661088594,2.00117517,124.98,124.89,19.02991216]
[1725661088883,2.00117517,124.98,124.88,16.4432]
[1725661089083,47.00117517,124.98,124.89,12.57611216]
[1725661089677,59.57735471,124.99,124.89,12.57611216]
[1725661089866,2.00107838,124.98,124.89,12.57611216]
[1725661090673,59.57720501,124.99,124.89,12.57611216]
[1725661090891,2.00109376,124.98,124.89,12.57611216]
[1725661091891,401.7771,125.0,124.93,12.57611216]
[1725661092097,21.8771,125.0,124.92,31.38456921]
[1725661093773,124.37232776,124.99,124.86,38.92863914]
[1725661093970,55.49456921,124.97,124.85,31.83269173]
[1725661094171,47.00145875,124.96,124.85,31.83269173]
[1725661094472,2.00145875,124.97,124.87,31.38456921]
[1725661094682,387.9018,124.98,124.87,31.38456921]
[1725661095183,379.9,124.98,124.89,31.38456921]
[1725661095974,21.8771,124.99,124.91,31.38456921]
[1725661096169,21.8771,125.02,124.95,31.38456921]
[1725661096377,21.8771,125.02,124.96,0.44513032]
[1725661097095,21.8771,125.05,124.99,31.38456921]
[1725661097691,21.8771,125.05,124.97,16.4432]
[1725661097868,21.8771,125.05,124.97,47.82776921]
[1725661098997,21.8771,125.05,124.97,48.2723031]
[1725661099294,21.8771,125.05,124.98,45.0]
[1725661100675,21.8771,125.05,124.97,47.82776921]
[1725661105391,21.8771,125.05,124.94,16.3467]
[1725661105575,21.8771,125.05,124.96,31.38456921]
[1725661105778,21.8771,125.05,124.96,31.82907316]
[1725661106197,21.8771,125.05,124.96,31.38456921]
[1725661106389,21.8771,125.05,124.98,31.38456921]
[1725661109104,22.1241,125.08,125.02,31.38456921]
[1725661109280,22.1241,125.08,125.04,31.38456921]
[1725661109688,6.0213,125.08,125.04,31.38456921]
[1725661112308,0.159958,125.09,125.04,31.38456921]
[1725661113195,16.1028,125.07,124.95,8.51242355]
[1725661113390,1.99960126,125.06,124.96,31.38456921]
[1725661113786,16.1028,125.07,124.98,31.38456921]
[1725661113997,16.1028,125.07,125.0,31.38456921]
[1725661114507,16.1028,125.07,125.01,0.44294776]
[1725661114807,16.1028,125.07,125.01,45.0]
[1725661115595,16.1028,125.07,125.0,31.38456921]
[1725661118714,18.1020029,125.07,125.0,31.38456921]
[1725661119013,1.99939735,125.06,125.0,31.38456921]
[1725661119204,16.1028,125.07,125.0,31.38456921]
[1725661119518,16.1028,125.07,125.01,45.0]
[1725661119682,16.1028,125.07,125.0,31.38456921]
[1725661120792,6.0213,125.08,125.05,31.38456921]
[1725661121192,6.0213,125.08,125.02,0.44172018]
[1725661121414,6.0213,125.08,125.03,31.38456921]
[1725661121604,6.0213,125.08,125.04,0.4423547]
[1725661121808,6.0213,125.08,125.01,45.0]
[1725661123411,6.0213,125.08,125.0,31.82792966]
[1725661123605,6.0213,125.08,125.01,45.0]
[1725661126419,6.0213,125.08,125.01,0.44315748]
[1725661126595,6.0213,125.08,125.01,0.44338426]
[1725661126997,6.0213,125.08,125.01,45.0]
[1725661127619,6.0213,125.08,125.02,31.82768386]
[1725661127805,6.0213,125.08,125.03,45.0]
[1725661128213,6.0213,125.08,125.04,31.38456921]
[1725661128603,6.0213,125.08,125.04,31.82685123]
[1725661129105,6.0213,125.08,125.04,31.38456921]
[1725661129303,6.0213,125.08,125.04,31.82691681]
[1725661129821,6.0213,125.08,125.04,31.82682255]
[1725661130007,6.0213,125.08,125.04,31.38456921]
[1725661131212,6.0213,125.08,125.03,76.38456921]
[1725661132500,6.0213,125.08,125.05,31.38456921]
[1725661132916,6.0213,125.08,125.05,31.82643127]
[1725661133304,6.0213,125.08,125.05,31.38456921]
[1725661133504,6.0213,125.08,125.06,45.0]
[1725661133700,0.159958,125.09,125.06,45.0]
[1725661134425,0.159958,125.09,125.01,31.3352]
[1725661134594,0.159958,125.09,125.04,31.38456921]
[1725661134798,0.159958,125.09,125.04,31.82658002]
[1725661135207,0.159958,125.09,125.04,31.38456921]
[1725661136417,14.744258,125.1,125.04,31.38456921]
[1725661141326,14.744258,125.1,125.01,15.0843]
[1725661141327,6.2261,125.09,125.01,31.38456921]
[1725661141807,6.2261,125.09,125.03,31.38456921]
[1725661142121,14.744258,125.1,125.08,12.52493279]
[1725661143429,14.744258,125.1,125.07,12.52493279]
[1725661144037,14.744258,125.1,125.0,15.90191718]
[1725661144038,14.744258,125.1,125.04,31.32589632]
[1725661145605,6.2261,125.09,125.04,31.32589632]
[1725661145804,6.2261,125.09,125.02,31.32589632]
[1725661146417,5.7261,125.09,125.02,31.32589632]
[1725661147525,16.5018,125.08,125.0,31.76925596]
[1725661147709,16.5018,125.08,125.02,31.32589632]
[1725661148719,16.5018,125.08,125.0,31.32589632]
[1725661148915,18.50113476,125.08,125.0,31.32589632]
[1725661149124,16.5018,125.08,125.0,31.32589632]
[1725661150331,6.2261,125.07,125.0,31.32589632]
[1725661150628,1.99960358,125.06,125.0,31.32589632]
[1725661151224,6.2261,125.07,125.0,31.32589632]
[1725661153722,6.2261,125.07,125.04,31.32589632]
[1725661154238,6.2261,125.07,125.06,31.32589632]
[1725661156311,16.5018,125.08,125.06,31.32589632]
[1725661158519,6.2261,125.1,125.06,31.32589632]
[1725661160033,6.2261,125.1,125.08,31.32589632]
[1725661161119,6.2261,125.1,125.01,51.8190767]
[1725661161322,6.2261,125.1,125.05,31.32589632]
[1725661167233,6.2261,125.1,124.99,30.68832534]
[1725661167234,15.8165,125.09,124.99,9.07242534]
[1725661167447,17.81578445,125.09,125.01,31.32589632]
[1725661167628,6.4666,125.08,125.01,31.32589632]
[1725661167822,1.99950701,125.07,125.01,31.32589632]
[1725661168042,1.9995073,125.06,125.01,31.32589632]
[1725661168426,6.4666,125.04,124.99,9.07242534]
[1725661168634,6.4666,125.04,124.98,31.32589632]
[1725661170038,8.46648834,125.04,124.98,31.32589632]
[1725661170422,8.46648834,125.04,124.95,40.39832166]
[1725661170737,6.4666,125.02,124.95,40.39832166]
[1725661170941,8.46710386,125.02,124.95,31.32589632]
[1725661171115,6.4666,125.02,124.95,31.32589632]
[1725661173220,2.00052021,125.01,124.95,31.32589632]
[1725661173420,6.4666,125.02,124.95,31.32589632]
[1725661173421,8.46713939,125.02,124.95,31.32589632]
[1725661173736,15.8165,125.0,124.93,31.32589632]
[1725661175128,15.8165,125.0,124.91,9.07242534]
[1725661175326,15.8165,125.0,124.9,19.12627111]
[1725661175327,15.8165,124.98,124.9,6.8190767]
[1725661175537,6.4666,124.97,124.9,31.32589632]
[1725661176333,6.4666,124.97,124.86,38.14497302]
[1725661176334,6.4666,124.95,124.86,38.14497302]
[1725661176541,8.46823803,124.95,124.86,31.32589632]
[1725661177825,6.4666,124.92,124.85,9.07242534]
[1725661178022,2.00209289,124.91,124.84,31.32589632]
[1725661178326,2.00203918,124.9,124.84,31.32589632]
[1725661178847,15.8165,124.89,124.84,31.32589632]
[1725661179838,15.8165,124.89,124.86,31.32589632]
[1725661185741,22.6295,124.92,124.88,31.32589632]
[1725661200748,22.6295,124.92,124.86,31.32589632]
[1725661201328,26.1115202,124.97,124.79,1.39426413]
[1725661201329,40.4404,124.87,124.79,1.39426413]
[1725661201547,40.4404,124.87,124.78,24.11]
[1725661201548,42.44365193,124.87,124.78,24.11]
[1725661201730,6.2573,124.84,124.78,24.11]
[1725661201934,8.26073597,124.84,124.76,31.32589632]
[1725661202144,40.38093597,124.84,124.74,31.32589632]
[1725661202345,40.38093597,124.84,124.73,31.32589632]
[1725661202346,69.11,124.83,124.73,31.32589632]
[1725661202534,2.00375202,124.82,124.73,31.32589632]
[1725661203047,6.2573,124.84,124.77,31.32589632]
[1725661203356,6.2573,124.84,124.77,30.82589632]
[1725661203878,6.2573,124.84,124.79,31.32589632]
[1725661204054,6.2573,124.84,124.75,0.45279395]
[1725661204055,6.2573,124.84,124.81,31.32589632]
[1725661204442,16.3304,124.87,124.83,31.32589632]
[1725661204746,16.3304,124.91,124.85,31.32589632]
[1725661204936,16.3304,124.91,124.87,31.32589632]
[1725661205140,16.3304,124.91,124.89,31.32589632]
[1725661206057,16.3304,124.91,124.87,39.25637567]
[1725661207838,30.3673,124.9,124.87,15.92317567]
[1725661208052,45.0,124.89,124.78,39.25637567]
[1725661208251,2.0027414,124.88,124.78,39.25637567]
[1725661208551,2.00304583,124.87,124.76,39.25637567]
[1725661209133,2.00304583,124.87,124.74,39.25637567]
[1725661209356,71.11304583,124.87,124.74,39.25637567]
[1725661211743,71.11304583,124.87,124.75,45.0]
[1725661211943,71.11304583,124.87,124.75,46.75566106]
[1725661212334,71.11304583,124.87,124.76,39.25637567]
[1725661214758,71.11304583,124.87,124.76,41.0123122]
[1725661216936,47.00304583,124.87,124.76,41.0123122]
[1725661217262,47.00304583,124.87,124.77,45.0]
[1725661217840,47.00304583,124.87,124.78,39.25637567]
[1725661218160,6.2573,124.9,124.8,39.25637567]
[1725661218344,6.2573,124.9,124.82,39.25637567]
[1725661218846,8.25965143,124.9,124.82,39.25637567]
[1725661221162,6.2573,124.9,124.82,39.25637567]
[1725661221761,6.2573,124.9,124.82,41.00921605]
[1725661222640,8.25944176,124.9,124.82,41.00921605]
[1725661223362,6.2573,124.9,124.82,39.25637567]
[1725661223548,6.2573,124.9,124.82,41.0082665]
[1725661223951,8.25944322,124.9,124.82,41.0082665]
[1725661224958,6.2573,124.9,124.82,41.0082665]
[1725661227650,8.25944526,124.9,124.83,39.25637567]
[1725661227971,8.25944526,124.9,124.82,1.75189083]
[1725661228880,8.25944526,124.9,124.81,84.25637567]
[1725661229074,8.25944526,124.9,124.82,1.75152252]
[1725661229567,32.36944526,124.9,124.82,1.75152252]
[1725661229758,45.0,124.89,124.82,1.75152252]
[1725661229966,2.00283763,124.88,124.82,1.75152252]
[1725661230168,2.00281219,124.87,124.82,1.75152252]
[1725661231269,386.1573,124.9,124.82,41.00789819]
[1725661231658,386.1573,124.9,124.84,39.25637567]
[1725661233157,386.1573,124.9,124.87,39.25637567]
[1725661233353,6.3311,124.93,124.89,39.25637567]
[1725661233567,6.3311,124.93,124.82,2.20093618]
[1725661233568,16.6043,124.94,124.91,39.25637567]
[1725661233766,6.3311,124.96,124.91,39.25637567]
[1725661237352,2.00112761,124.95,124.87,39.25637567]
[1725661237755,2.00112761,124.95,124.85,39.25637567]
[1725661237986,47.00112761,124.95,124.85,39.25637567]
[1725661239554,16.6043,124.94,124.85,39.25637567]
[1725661239766,6.3311,124.92,124.83,39.25637567]
[1725661242956,6.3311,124.92,124.89,39.25637567]
[1725661244083,16.6043,124.94,124.89,39.25637567]
[1725661247871,16.6043,124.94,124.87,39.25637567]
[1725661252172,18.60576745,124.94,124.87,39.25637567]
[1725661252378,16.6043,124.94,124.87,39.25637567]
[1725661260879,2.00149281,124.93,124.87,39.25637567]
[1725661261294,16.6043,124.94,124.87,39.25637567]
[1725661261685,16.6043,124.94,124.89,39.25637567]
[1725661261890,16.6043,124.94,124.9,45.0]
[1725661262082,16.6043,124.94,124.91,39.25637567]
[1725661263999,16.6043,124.94,124.91,31.38760191]
[1725661275393,16.6043,124.94,124.88,31.38760191]
[1725661276211,2.00163694,124.93,124.86,31.38760191]
[1725661278016,15.5679,124.91,124.83,14.53281164]
[1725661278324,2.00215258,124.9,124.83,39.97017019]
[1725661278516,17.57005291,124.91,124.83,39.97017019]
[1725661278817,2.00215291,124.9,124.83,39.97017019]
[1725661279209,17.57009219,124.91,124.83,39.97017019]
[1725661279392,17.5701292,124.91,124.83,39.97017019]
[1725661279593,23.61855866,124.9,124.81,31.38760191]
[1725661279826,23.61855866,124.9,124.79,31.38760191]
[1725661279827,15.5679,124.88,124.79,31.38760191]
[1725661280114,17.57065211,124.88,124.79,31.38760191]
[1725661280316,2.00274607,124.87,124.79,31.38760191]
[1725661280617,6.0484,124.86,124.79,31.38760191]
[1725661281513,6.0484,124.86,124.81,31.38760191]
[1725661283620,6.0484,124.86,124.83,31.38760191]
[1725661294846,15.5679,124.88,124.85,31.38760191]
[1725661295015,15.5679,124.88,124.87,31.38760191]
[1725661295328,6.0044,124.9,124.87,31.38760191]
[1725661296130,15.9713,124.91,124.89,31.38760191]
[1725661296307,21.9757,124.94,124.89,31.38760191]
[1725661296617,21.9757,124.94,124.91,31.38760191]
[1725661297122,21.9757,124.94,124.93,31.38760191]
[1725661297532,21.9757,125.02,124.93,31.38760191]
[1725661297828,21.9757,125.02,124.98,31.38760191]
[1725661299628,2.00013672,125.01,124.94,45.0]
[1725661299833,2.00013672,125.01,124.94,76.38760191]
[1725661300330,21.9757,125.02,124.94,31.38760191]
[1725661300530,2.00026658,125.01,124.94,31.38760191]
[1725661300748,23.97622267,125.02,124.94,31.38760191]
[1725661301045,2.00052267,125.01,124.94,31.38760191]
[1725661301211,23.97621959,125.02,124.94,31.38760191]
[1725661301408,21.9757,125.02,124.94,31.38760191]
[1725661303840,47.00052021,125.01,124.92,31.38760191]
[1725661304522,23.97652712,125.02,124.94,31.38760191]
[1725661305230,2.00051844,125.01,124.94,31.38760191]
[1725661306148,23.97631627,125.02,124.94,31.38760191]
[1725661306639,2.00056536,125.01,124.94,31.38760191]
[1725661307030,23.97630037,125.02,124.94,31.38760191]
[1725661307259,2.00060443,125.01,124.94,31.38760191]
[1725661309326,23.97635921,125.02,124.94,31.38760191]
[1725661310450,2.00061432,125.01,124.94,31.38760191]
[1725661310744,47.00061432,125.01,124.92,31.38760191]
[1725661311046,16.3415,124.99,124.92,31.38760191]
[1725661311723,2.00093783,124.98,124.9,31.38760191]
[1725661311929,6.4148,124.97,124.88,31.38760191]
[1725661312133,8.41612263,124.97,124.88,31.38760191]
[1725661312852,61.3415,124.96,124.86,31.38760191]
[1725661313049,2.00159569,124.95,124.86,31.38760191]
[1725661313524,22.7563,125.03,124.94,31.38760191]
[1725661313726,22.7563,125.03,124.98,31.38760191]
[1725661314133,2.00034111,125.02,124.96,31.38760191]
[1725661314352,2.0006457,125.01,124.96,31.38760191]
[1725661314745,2.00064534,125.02,124.96,31.38760191]
[1725661315330,47.00064534,125.02,124.96,31.38760191]
[1725661315529,2.00064461,125.01,124.94,42.33809946]
[1725661315742,47.00064461,125.01,124.94,31.38760191]
[1725661315946,47.00064461,125.01,124.93,39.21681673]
[1725661316167,2.00064461,125.01,124.93,39.21681673]
[1725661317855,6.4148,125.0,124.91,39.21681673]
[1725661318032,2.00107083,124.99,124.91,39.21681673]
[1725661318233,47.00107083,124.99,124.91,39.21681673]
[1725661318446,2.00106967,124.98,124.91,39.21681673]
[1725661320262,47.00106967,124.98,124.91,39.21681673]
[1725661320658,2.00106967,124.98,124.91,39.21681673]
[1725661321155,47.00126198,124.99,124.91,39.21681673]
[1725661321330,45.0,124.99,124.91,49.52280317]
[1725661321539,47.00106625,124.99,124.91,49.52280317]
[1725661321854,2.00106625,124.99,124.91,49.52280317]
[1725661323152,6.4148,125.0,124.91,49.52280317]
[1725661323337,8.41574316,125.0,124.91,49.52280317]
[1725661324257,6.4148,125.0,124.93,39.21681673]
[1725661324457,6.4148,125.0,124.95,39.21681673]
[1725661326554,6.4148,125.0,124.93,39.21681673]
[1725661326766,2.00049293,124.99,124.93,39.21681673]
[1725661327056,6.4148,125.0,124.93,39.21681673]
[1725661327655,2.0007036,124.99,124.93,39.21681673]
[1725661328168,8.41571182,125.0,124.93,39.21681673]
[1725661329055,6.4148,125.0,124.93,39.21681673]
[1725661333654,2.00066927,124.99,124.93,39.21681673]
[1725661334257,17.37195687,124.98,124.91,39.21681673]
[1725661334853,17.37208355,124.98,124.89,40.96432669]
[1725661335069,6.0773,124.97,124.89,39.21681673]
[1725661335248,2.00127825,124.96,124.89,39.21681673]
[1725661335768,2.00133296,124.95,124.87,39.21681673]
[1725661335958,2.00133296,124.95,124.87,31.41005505]
[1725661336958,47.00162239,124.96,124.87,31.41005505]
[1725661338080,2.00159642,124.95,124.87,31.41005505]
[1725661338379,47.00160446,124.96,124.87,31.41005505]
[1725661338549,2.00160551,124.95,124.87,31.41005505]
[1725661339865,47.00160391,124.96,124.87,31.41005505]
[1725661340071,47.00160391,124.96,124.86,1.74986298]
[1725661340072,8.07878337,124.97,124.89,31.41005505]
[1725661340957,8.07878337,124.97,124.87,33.15918359]
[1725661341158,45.0,124.96,124.87,33.15918359]
[1725661341367,45.0,124.96,124.87,31.41005505]
[1725661341676,2.00160039,124.95,124.87,31.41005505]
[1725661342759,16.644,124.94,124.87,31.41005505]
[1725661342959,6.1558,124.93,124.87,31.41005505]
[1725661344267,6.1558,124.93,124.85,31.41005505]
[1725661344576,6.1558,124.93,124.86,0.44962906]
[1725661344967,6.1558,124.93,124.85,31.41005505]
[1725661345674,16.644,124.89,124.79,31.41005505]
[1725661345885,16.644,124.89,124.81,31.41005505]
[1725661346069,16.644,124.89,124.83,31.41005505]
[1725661346961,16.644,124.89,124.81,9.88278671]
[1725661346962,16.644,124.89,124.81,41.29284176]
[1725661347163,47.00285673,124.88,124.79,31.41005505]
[1725661347368,2.00293146,124.87,124.79,31.41005505]
[1725661347863,16.644,124.85,124.79,31.41005505]
[1725661348181,2.00317048,124.84,124.77,31.41005505]
[1725661348992,18.64734268,124.85,124.77,31.41005505]
[1725661349680,47.00334491,124.84,124.77,31.41005505]
[1725661350861,6.1558,124.83,124.75,31.41005505]
[1725661351077,2.00375078,124.82,124.75,31.41005505]
[1725661351281,8.15955598,124.83,124.75,31.41005505]
[1725661352273,45.0,124.82,124.75,31.41005505]
[1725661352667,16.644,124.8,124.73,31.41005505]
[1725661352872,8.15994772,124.79,124.72,9.88278671]
[1725661353072,8.15994772,124.79,124.69,31.41005505]
[1725661353286,45.0,124.78,124.69,31.41005505]
[1725661353581,16.644,124.76,124.69,31.41005505]
[1725661353881,18.64869265,124.76,124.69,31.41005505]
[1725661354191,16.644,124.76,124.69,31.41005505]
[1725661354360,18.64862682,124.76,124.69,31.41005505]
[1725661354686,6.1558,124.75,124.68,9.88278671]
[1725661355068,6.1558,124.75,124.69,31.41005505]
[1725661357972,6.1558,124.75,124.71,31.41005505]